[Event "2nd Summer Festival Belgrade GM 2019"]
[Site "Belgrade"]
[Date "2019.07.01"]
[Round "11.4"]
[White "Damljanovic, Branko"]
[Black "Liu, Zhaoqi"]
[Result "1/2-1/2"]
[ECO "B38"]
[WhiteElo "2468"]
[BlackElo "2386"]
[Annotator "ChessBase"]
[PlyCount "66"]
[EventDate "2019.06.25"]
[EventType "tourn"]
[EventCountry "SRB"]
[SourceTitle "playchess.com"]
[Source "ChessBase"]
[SourceQuality "1"]
[TimeControl "5400+30"]

1. Nf3 {[%emt 0:06:50]} Nf6 {[%emt 0:00:00]} 2. c4 {[%emt 0:00:08]} c5 {[%emt 0:00:00]} 3. Nc3 {[%emt 0:00:06]} g6 {[%emt 0:00:00]} 4. d4 {[%emt 0:00:17]} cxd4 {[%emt 0:00:00]} 5. Nxd4 {[%emt 0:00:06]} Bg7 {[%emt 0:00:00]} 6. e4 {[%emt 0:00:08]} O-O {[%emt 0:00:04]} 7. Be2 {[%emt 0:00:07]} d6 {[%emt 0:00:04]} 8. O-O {[%emt 0:00:07]} Nc6 {[%emt 0:00:01]} 9. Be3 {[%emt 0:01:56]} Nxd4 {[%emt 0:00:28]} 10. Bxd4 {[%emt 0:00:04]} Bd7 {[%emt 0:00:12]} 11. f3 {[%emt 0:04:56]} a5 {[%emt 0:00:09]} 12. b3 {[%emt 0:00:10]} Bc6 {[%emt 0:00:09]} 13. Qd2 {[%emt 0:00:02]} Nd7 {[%emt 0:00:04]} 14. Be3 {[%emt 0:00:07]} Nc5 {[%emt 0:00:05]} 15. Rab1 {[%emt 0:00:04]} Qb6 {[%emt 0:00:28]} 16. Rfc1 {[%emt 0:00:07]} Rfc8 {[%emt 0:00:08]} 17. Rc2 {[%emt 1:23:15]} Qb4 {[%emt 0:00:04]} 18. Qc1 {[%emt 0:00:00]} Qb6 {[%emt 0:00:04]} 19. a3 {[%emt 0:00:00]} Qd8 {[%emt 0:00:21]} 20. Qd1 {[%emt 0:00:00]} h5 {[%emt 0:07:02]} 21. Bf1 {[%emt 0:00:00]} Kh7 {[%emt 0:01:41]} 22. Kh1 {[%emt 0:00:00]} Be5 {[%emt 0:10:38]} 23. b4 {[%emt 0:00:00]} axb4 {[%emt 0:00:20]} 24. axb4 {[%emt 0:00:00]} Na4 {[%emt 0:18:56]} 25. Ne2 {[%emt 0:00:00]} Nb6 {[%emt 0:00:08]} 26. b5 {[%emt 0:00:00]} Bd7 {[%emt 0:01:20]} 27. c5 {[%emt 0:00:00]} dxc5 {[%emt 0:01:53]} 28. Bxc5 {[%emt 0:00:00]} Na4 {[%emt 0:01:58]} 29. Bd4 {[%emt 0:00:00]} Bxd4 {[%emt 0:07:54]} 30. Rxc8 {[%emt 0:00:00]} Bxc8 {[%emt 0:00:10]} 31. Qxd4 {[%emt 0:00:00]} Qxd4 {[%emt 0:00:08]} 32. Nxd4 {[%emt 0:00:00]} e5 {[%emt 0:00:09]} 33. Nc2 {[%emt 0:00:00]} Be6 {[%emt 0:00:09]} 1/2-1/2

[Event "2nd Summer Festival Belgrade GM 2019"]
[Site "Belgrade"]
[Date "2019.07.01"]
[Round "11.5"]
[White "Strikovic, Aleksa"]
[Black "Ernst, Sipke"]
[Result "0-1"]
[ECO "A06"]
[WhiteElo "2503"]
[BlackElo "2541"]
[Annotator "ChessBase"]
[PlyCount "66"]
[EventDate "2019.06.25"]
[EventType "tourn"]
[EventCountry "SRB"]
[SourceTitle "playchess.com"]
[Source "ChessBase"]
[SourceQuality "1"]
[TimeControl "5400+30"]

1. c4 {[%emt 0:00:33]} c6 {[%emt 0:04:56]} 2. Nf3 {[%emt 0:01:09]} d5 {[%emt 0:00:20]} 3. e3 {[%emt 0:00:00]} Nf6 {[%emt 0:00:34]} 4. b3 {[%emt 0:00:00]} e6 {[%emt 0:00:51]} 5. Bb2 {[%emt 0:00:22]} Bd6 {[%emt 0:00:43]} 6. d4 {[%emt 0:00:16]} Ne4 {[%emt 0:00:45]} 7. Bd3 {[%emt 0:00:16]} Nd7 {[%emt 0:00:46]} 8. O-O {[%emt 0:04:13]} b6 {[%emt 0:10:21]} 9. cxd5 {[%emt 0:01:52]} exd5 {[%emt 0:02:41]} 10. Qc2 {[%emt 0:00:47]} Ndf6 {[%emt 0:09:49]} 11. Ne5 {[%emt 0:00:25]} c5 {[%emt 0:00:40]} 12. Bb5+ {[%emt 0:00:24]} Kf8 {[%emt 0:00:09]} 13. f3 {[%emt 0:05:38]} Ng5 {[%emt 0:00:39]} 14. Nd2 {[%emt 0:02:35]} Bb7 {[%emt 0:02:24]} 15. dxc5 {[%emt 0:07:28]} bxc5 {[%emt 0:05:04]} 16. Rad1 {[%emt 1:12:02]} h5 {[%emt 0:09:41]} 17. e4 {[%emt 0:00:00]} Qb6 {[%emt 0:05:31]} 18. Ba4 {[%emt 0:00:00]} Qc7 {[%emt 0:07:15]} 19. f4 {[%emt 0:00:00]} Ngxe4 {[%emt 0:00:43]} 20. Nxe4 {[%emt 0:00:00]} Nxe4 {[%emt 0:00:36]} 21. Rc1 {[%emt 0:00:00]} Rh6 {[%emt 0:04:13]} 22. Bb5 {[%emt 0:00:00]} Kg8 {[%emt 0:01:36]} 23. Bd3 {[%emt 0:00:00]} a5 {[%emt 0:12:15]} 24. Bxe4 {[%emt 0:00:00]} dxe4 {[%emt 0:00:03]} 25. Rfd1 {[%emt 0:00:00]} Re8 {[%emt 0:03:52]} 26. Qc4 {[%emt 0:00:00]} Rf6 {[%emt 0:02:24]} 27. Qb5 {[%emt 0:00:00]} Rfe6 {[%emt 0:02:09]} 28. Bd4 {[%emt 0:00:00]} e3 {[%emt 0:01:01]} 29. Bxe3 {[%emt 0:00:00]} Bxe5 {[%emt 0:03:35]} 30. Rxc5 {[%emt 0:00:00]} Bc6 {[%emt 0:00:08]} 31. fxe5 {[%emt 0:00:00]} Rg6 {[%emt 0:00:11]} 32. Rd2 {[%emt 0:00:00]} Rxe5 {[%emt 0:02:15]} 33. Rdc2 {[%emt 0:01:41]} Bxb5 {[%emt 0:00:40]} 0-1

[Event "2nd Summer Festival Belgrade GM 2019"]
[Site "Belgrade"]
[Date "2019.07.01"]
[Round "11.6"]
[White "Nandhidhaa, P V"]
[Black "Chen, Peng"]
[Result "1/2-1/2"]
[ECO "B56"]
[WhiteElo "2259"]
[BlackElo "2328"]
[Annotator "ChessBase"]
[PlyCount "53"]
[EventDate "2019.06.25"]
[EventType "tourn"]
[EventCountry "SRB"]
[SourceTitle "playchess.com"]
[Source "ChessBase"]
[SourceQuality "1"]
[TimeControl "5400+30"]

1. e4 {[%emt 0:02:35]} c5 {[%emt 0:00:00]} 2. Nf3 {[%emt 0:00:04]} d6 {[%emt 0:00:00]} 3. d4 {[%emt 0:00:11]} Nf6 {[%emt 1:31:30]} 4. Nc3 {[%emt 0:00:04]} cxd4 {[%emt 0:00:00]} 5. Nxd4 {[%emt 0:00:04]} Nc6 {[%emt 0:00:02]} 6. f3 {[%emt 0:00:23]} Qb6 {[%emt 0:00:07]} 7. Nb3 {[%emt 0:00:37]} g6 {[%emt 0:00:08]} 8. Qe2 {[%emt 0:00:51]} Bg7 {[%emt 0:00:27]} 9. Be3 {[%emt 0:00:17]} Qd8 {[%emt 0:00:52]} 10. Qd2 {[%emt 0:03:02]} O-O {[%emt 0:02:33]} 11. O-O-O {[%emt 0:01:05]} a5 {[%emt 0:04:03]} 12. a3 {[%emt 0:03:27]} a4 {[%emt 0:06:56]} 13. Nd4 {[%emt 0:00:09]} Bd7 {[%emt 0:02:41]} 14. g4 {[%emt 0:01:19]} Rc8 {[%emt 0:05:59]} 15. h4 {[%emt 0:07:47]} Ne5 {[%emt 0:02:12]} 16. h5 {[%emt 0:01:59]} Qa5 {[%emt 0:10:47]} 17. Kb1 {[%emt 0:02:27]} Nxf3 {[%emt 0:04:46]} 18. Nxf3 {[%emt 0:02:04]} Rxc3 {[%emt 0:09:57]} 19. Qxc3 {[%emt 0:00:38]} Qxc3 {[%emt 0:00:04]} 20. bxc3 {[%emt 0:00:05]} Bxg4 {[%emt 0:00:15]} 21. Bg2 {[%emt 0:06:34]} Nxe4 {[%emt 0:00:33]} 22. Rde1 {[%emt 0:15:46]} Rc8 {[%emt 0:13:13]} 23. hxg6 {[%emt 0:03:58]} hxg6 {[%emt 0:01:01]} 24. Bh3 {[%emt 0:13:01]} Nxc3+ {[%emt 0:18:49]} 25. Kc1 {[%emt 0:00:13]} Na2+ {[%emt 0:17:05]} 26. Kd2 {[%emt 0:34:20]} Bc3+ {[%emt 0:13:37]} 27. Kd3 {[%emt 0:00:30]} 1/2-1/2